[Event "Early-Titled-Tuesday-Blitz-March-05-2024"]
[Site "Chess.com"]
[Date "2024.03.05"]
[Round "4"]
[White "chupitroko32"]
[Black "GWR2024"]
[Result "1-0"]
[WhiteElo "2402"]
[BlackElo "2118"]
[TimeControl "180+1"]
[EndTime "8:41:24 PST"]
[Termination "chupitroko32 won by resignation"]

1. e4 {[%clk 0:03:00.9]} 1... e5 {[%clk 0:02:38.1]} 2. d4 {[%clk 0:03:00.4]}
2... exd4 {[%clk 0:02:37.4]} 3. Qxd4 {[%clk 0:03:01.3]} 3... Nc6 {[%clk
0:02:35.6]} 4. Qe3 {[%clk 0:03:01.9]} 4... d6 {[%clk 0:02:34.8]} 5. Nc3 {[%clk
0:03:02]} 5... Nf6 {[%clk 0:02:34.7]} 6. Bc4 {[%clk 0:03:01.8]} 6... Be7 {[%clk
0:02:34.4]} 7. Bd2 {[%clk 0:03:02]} 7... O-O {[%clk 0:02:33.8]} 8. O-O-O {[%clk
0:03:02.2]} 8... Ne5 {[%clk 0:02:33.2]} 9. Be2 {[%clk 0:03:01.2]} 9... Nfg4
{[%clk 0:02:23.2]} 10. Bxg4 {[%clk 0:03:00.4]} 10... Nxg4 {[%clk 0:02:22.7]} 11.
Qe2 {[%clk 0:02:54.4]} 11... Be6 {[%clk 0:02:21.3]} 12. h3 {[%clk 0:02:52.6]}
12... Ne5 {[%clk 0:02:20.2]} 13. Kb1 {[%clk 0:02:50.3]} 13... Nc4 {[%clk
0:02:16.8]} 14. Bc1 {[%clk 0:02:50.1]} 14... b5 {[%clk 0:02:15.4]} 15. f4 {[%clk
0:02:47]} 15... f6 {[%clk 0:02:07.5]} 16. Nf3 {[%clk 0:02:45]} 16... Rb8 {[%clk
0:02:06.7]} 17. Nd4 {[%clk 0:02:43.8]} 17... Bf7 {[%clk 0:02:04.7]} 18. Nc6
{[%clk 0:02:43.5]} 18... Qd7 {[%clk 0:02:02.7]} 19. Nxb8 {[%clk 0:02:41]} 19...
Rxb8 {[%clk 0:02:03.6]} 20. Nd5 {[%clk 0:02:40.2]} 20... Bf8 {[%clk 0:02:00.1]}
21. b3 {[%clk 0:02:39.9]} 21... Nb6 {[%clk 0:01:45.6]} 22. Bb2 {[%clk 0:02:35]}
22... Nxd5 {[%clk 0:01:44.1]} 23. exd5 {[%clk 0:02:35.9]} 23... Re8 {[%clk
0:01:43.1]} 24. Qf2 {[%clk 0:02:35.7]} 24... Bg6 {[%clk 0:01:38.6]} 25. Rhe1
{[%clk 0:02:31.4]} 25... Be4 {[%clk 0:01:36.9]} 26. Qg1 {[%clk 0:02:27.5]} 26...
f5 {[%clk 0:01:36.9]} 27. g4 {[%clk 0:02:26.5]} 27... Qf7 {[%clk 0:01:35.8]} 28.
gxf5 {[%clk 0:02:25.9]} 28... Qxf5 {[%clk 0:01:35.5]} 29. Qf2 {[%clk 0:02:18.1]}
29... a5 {[%clk 0:01:27.6]} 30. Kc1 {[%clk 0:02:10.3]} 30... a4 {[%clk
0:01:25.6]} 31. Rd4 {[%clk 0:02:10]} 31... axb3 {[%clk 0:01:21.7]} 32. axb3
{[%clk 0:02:09.6]} 32... c5 {[%clk 0:01:00.4]} 33. dxc6 {[%clk 0:02:07.9]} 33...
Qc5 {[%clk 0:00:56.7]} 34. c7 {[%clk 0:01:35.6]} 34... d5 {[%clk 0:00:55.2]} 35.
Rdxe4 {[%clk 0:00:55.3]} 35... dxe4 {[%clk 0:00:53.7]} 36. Qxc5 {[%clk 0:00:53]}
36... Bxc5 {[%clk 0:00:52.4]} 37. Rxe4 {[%clk 0:00:53.7]} 37... Rc8 {[%clk
0:00:49.1]} 38. Be5 {[%clk 0:00:54.3]} 38... Kf7 {[%clk 0:00:47]} 39. Re2 {[%clk
0:00:49.5]} 39... g6 {[%clk 0:00:46.3]} 40. Kb2 {[%clk 0:00:47.1]} 40... b4
{[%clk 0:00:45.5]} 41. Rd2 {[%clk 0:00:46.8]} 41... Ke6 {[%clk 0:00:43.8]} 42.
Rd8 {[%clk 0:00:46.1]} 42... Bd4+ {[%clk 0:00:31.2]} 43. Rxd4 {[%clk 0:00:36]}
1-0

[Event "Early-Titled-Tuesday-Blitz-March-05-2024"]
[Site "Chess.com"]
[Date "2024.03.05"]
[Round "4"]
[White "KnightmareJoker"]
[Black "DvaHrasta"]
[Result "0-1"]
[WhiteElo "2216"]
[BlackElo "2448"]
[TimeControl "180+1"]
[EndTime "8:41:27 PST"]
[Termination "DvaHrasta won by resignation"]

1. e4 {[%clk 0:03:00.9]} 1... c6 {[%clk 0:02:57.3]} 2. d4 {[%clk 0:03:00.3]}
2... d5 {[%clk 0:02:57]} 3. exd5 {[%clk 0:03:01.1]} 3... cxd5 {[%clk 0:02:56.9]}
4. Bd3 {[%clk 0:03:01.9]} 4... Nc6 {[%clk 0:02:57]} 5. c3 {[%clk 0:03:02]} 5...
e5 {[%clk 0:02:57.1]} 6. dxe5 {[%clk 0:03:00.4]} 6... Nxe5 {[%clk 0:02:57.1]} 7.
Qe2 {[%clk 0:03:01.2]} 7... Qe7 {[%clk 0:02:56.3]} 8. Bb5+ {[%clk 0:03:00.1]}
8... Bd7 {[%clk 0:02:56.4]} 9. Bxd7+ {[%clk 0:03:00.1]} 9... Kxd7 {[%clk
0:02:56.7]} 10. Be3 {[%clk 0:02:57.5]} 10... Nc4 {[%clk 0:02:48.4]} 11. Nd2
{[%clk 0:02:31.1]} 11... Nxe3 {[%clk 0:02:46.8]} 12. Qxe3 {[%clk 0:02:31.7]}
12... Qxe3+ {[%clk 0:02:45.5]} 13. fxe3 {[%clk 0:02:32.6]} 13... Bc5 {[%clk
0:02:43.7]} 14. e4 {[%clk 0:02:11]} 14... dxe4 {[%clk 0:02:11.9]} 15. Nxe4
{[%clk 0:02:06.9]} 15... Be3 {[%clk 0:02:05.9]} 16. Rd1+ {[%clk 0:01:58.3]}
16... Kc7 {[%clk 0:02:04.3]} 17. Ke2 {[%clk 0:01:56.5]} 17... Bb6 {[%clk
0:01:51.8]} 18. Kf3 {[%clk 0:01:43.8]} 18... Re8 {[%clk 0:01:47.7]} 19. Rd3
{[%clk 0:01:27.6]} 19... Ne7 {[%clk 0:01:26.5]} 20. Nh3 {[%clk 0:01:22.2]} 20...
Ng6 {[%clk 0:01:25.4]} 21. Rd5 {[%clk 0:00:50.3]} 21... Ne5+ {[%clk 0:01:20.8]}
22. Rxe5 {[%clk 0:00:50.8]} 22... Rxe5 {[%clk 0:01:20.2]} 23. Rd1 {[%clk
0:00:34.8]} 23... Rhe8 {[%clk 0:01:17.5]} 24. Nhf2 {[%clk 0:00:34.4]} 24... f5
{[%clk 0:01:15]} 25. Ng3 {[%clk 0:00:29.9]} 25... Re3+ {[%clk 0:01:06.4]} 26.
Kf4 {[%clk 0:00:30.5]} 26... g6 {[%clk 0:01:03.4]} 27. Nh3 {[%clk 0:00:27.9]}
27... h6 {[%clk 0:00:58.3]} 28. Nf1 {[%clk 0:00:27.8]} 28... Re2 {[%clk
0:00:55.1]} 29. g3 {[%clk 0:00:22.4]} 29... Rxb2 {[%clk 0:00:53.7]} 30. Nd2
{[%clk 0:00:20.5]} 30... Be3+ {[%clk 0:00:52.3]} 31. Kf3 {[%clk 0:00:20.8]}
31... Bxd2 {[%clk 0:00:50.8]} 32. Nf2 {[%clk 0:00:19.9]} 32... Re3+ {[%clk
0:00:47.5]} 33. Kg2 {[%clk 0:00:20.4]} 33... Bxc3 {[%clk 0:00:43.3]} 34. Rc1
{[%clk 0:00:21]} 34... Kb6 {[%clk 0:00:41.6]} 35. Kg1 {[%clk 0:00:19.2]} 35...
Bd4 {[%clk 0:00:40.1]} 36. Rd1 {[%clk 0:00:16.9]} 36... Bc5 {[%clk 0:00:39.4]}
37. Nd3 {[%clk 0:00:15.4]} 37... Rxd3+ {[%clk 0:00:38.9]} 0-1

[Event "Early-Titled-Tuesday-Blitz-March-05-2024"]
[Site "Chess.com"]
[Date "2024.03.05"]
[Round "4"]
[White "lucasran"]
[Black "Hui_Li_Macau"]
[Result "1-0"]
[WhiteElo "2600"]
[BlackElo "2388"]
[TimeControl "180+1"]
[EndTime "8:41:29 PST"]
[Termination "lucasran won by resignation"]

1. Nf3 {[%clk 0:02:57.6]} 1... d5 {[%clk 0:02:58.9]} 2. d4 {[%clk 0:02:47.7]}
2... Nf6 {[%clk 0:02:58.5]} 3. c4 {[%clk 0:02:48.1]} 3... e6 {[%clk 0:02:58.4]}
4. Nc3 {[%clk 0:02:48.2]} 4... Be7 {[%clk 0:02:58.3]} 5. Bg5 {[%clk 0:02:48.3]}
5... O-O {[%clk 0:02:58.3]} 6. e3 {[%clk 0:02:49]} 6... h6 {[%clk 0:02:58.5]} 7.
Bh4 {[%clk 0:02:48.4]} 7... Ne4 {[%clk 0:02:58.7]} 8. Bxe7 {[%clk 0:02:48.5]}
8... Qxe7 {[%clk 0:02:59.6]} 9. Rc1 {[%clk 0:02:49.1]} 9... c6 {[%clk
0:02:55.6]} 10. Qc2 {[%clk 0:02:46.9]} 10... Nd7 {[%clk 0:02:47]} 11. Nxe4
{[%clk 0:02:42.6]} 11... dxe4 {[%clk 0:02:47.9]} 12. Qxe4 {[%clk 0:02:43.5]}
12... Qb4+ {[%clk 0:02:47.8]} 13. Nd2 {[%clk 0:02:44]} 13... Qxb2 {[%clk
0:02:47.9]} 14. Qc2 {[%clk 0:02:44.5]} 14... Qxc2 {[%clk 0:02:43.7]} 15. Rxc2
{[%clk 0:02:45.4]} 15... c5 {[%clk 0:02:37.2]} 16. Nb3 {[%clk 0:02:42.6]} 16...
b6 {[%clk 0:02:34.9]} 17. Be2 {[%clk 0:02:18.8]} 17... Bb7 {[%clk 0:02:34.5]}
18. Bf3 {[%clk 0:02:18.2]} 18... Bxf3 {[%clk 0:02:34]} 19. gxf3 {[%clk
0:02:19.1]} 19... Rac8 {[%clk 0:02:33.3]} 20. d5 {[%clk 0:02:17.5]} 20... exd5
{[%clk 0:02:30.9]} 21. cxd5 {[%clk 0:02:18.4]} 21... b5 {[%clk 0:02:19.2]} 22.
Ke2 {[%clk 0:02:17.6]} 22... c4 {[%clk 0:02:17.8]} 23. Nd4 {[%clk 0:02:17.9]}
23... Nf6 {[%clk 0:01:58.2]} 24. e4 {[%clk 0:02:16.7]} 24... Rfe8 {[%clk
0:01:58.4]} 25. Nxb5 {[%clk 0:02:10]} 25... Rc5 {[%clk 0:01:40.8]} 26. Nd6
{[%clk 0:02:03.3]} 26... Re7 {[%clk 0:01:39.9]} 27. Nf5 {[%clk 0:01:56.5]} 27...
Re8 {[%clk 0:01:32.7]} 28. Ne3 {[%clk 0:01:56]} 28... c3 {[%clk 0:01:28]} 29.
Rhc1 {[%clk 0:01:56.1]} 29... Rec8 {[%clk 0:01:18.9]} 30. Nd1 {[%clk 0:01:56.2]}
30... Re8 {[%clk 0:01:05.8]} 31. Kf1 {[%clk 0:01:53.2]} 31... Nxe4 {[%clk
0:00:36]} 32. fxe4 {[%clk 0:01:52.8]} 32... Rxe4 {[%clk 0:00:36.4]} 33. Ne3
{[%clk 0:01:52]} 33... Ra5 {[%clk 0:00:22.5]} 34. Rxc3 {[%clk 0:01:47.1]} 34...
Rxa2 {[%clk 0:00:22.1]} 35. R1c2 {[%clk 0:01:44.3]} 35... Ra1+ {[%clk
0:00:20.8]} 36. Ke2 {[%clk 0:01:44.6]} 36... Rd4 {[%clk 0:00:19.8]} 37. Rd2
{[%clk 0:01:43.7]} 37... Rxd2+ {[%clk 0:00:15.5]} 38. Kxd2 {[%clk 0:01:44.6]}
38... Kf8 {[%clk 0:00:12.6]} 39. Nf5 {[%clk 0:01:34.1]} 39... Ke8 {[%clk
0:00:12.6]} 40. Nxg7+ {[%clk 0:01:34.4]} 40... Kd7 {[%clk 0:00:12.2]} 41. Nf5
{[%clk 0:01:34.7]} 41... Ra2+ {[%clk 0:00:11.4]} 42. Ke3 {[%clk 0:01:34.1]}
42... Ra5 {[%clk 0:00:10.1]} 43. Rd3 {[%clk 0:01:34.4]} 43... Ra1 {[%clk
0:00:07]} 44. Nxh6 {[%clk 0:01:33.8]} 44... a5 {[%clk 0:00:07.3]} 45. Nxf7
{[%clk 0:01:34]} 45... a4 {[%clk 0:00:07.7]} 46. Ne5+ {[%clk 0:01:34.5]} 46...
Kd6 {[%clk 0:00:06.5]} 47. Nc4+ {[%clk 0:01:35]} 47... Kc5 {[%clk 0:00:06.9]}
48. d6 {[%clk 0:01:35.4]} 48... Kxc4 {[%clk 0:00:07]} 49. d7 {[%clk 0:01:35.7]}
49... Re1+ {[%clk 0:00:07.1]} 50. Kd2 {[%clk 0:01:36]} 1-0

[Event "Early-Titled-Tuesday-Blitz-March-05-2024"]
[Site "Chess.com"]
[Date "2024.03.05"]
[Round "4"]
[White "IvanSoriano1"]
[Black "TheAlienParty"]
[Result "1-0"]
[WhiteElo "2571"]
[BlackElo "2387"]
[TimeControl "180+1"]
[EndTime "8:41:29 PST"]
[Termination "IvanSoriano1 won on time"]

1. d4 {[%clk 0:03:00.9]} 1... Nf6 {[%clk 0:02:59.3]} 2. c4 {[%clk 0:03:00.7]}
2... e6 {[%clk 0:02:59.3]} 3. Nc3 {[%clk 0:03:00.8]} 3... Bb4 {[%clk 0:02:58.4]}
4. e3 {[%clk 0:03:00.8]} 4... O-O {[%clk 0:02:53.4]} 5. Ne2 {[%clk 0:02:59.1]}
5... d5 {[%clk 0:02:52.8]} 6. a3 {[%clk 0:02:58.6]} 6... Be7 {[%clk 0:02:50.4]}
7. cxd5 {[%clk 0:02:56.7]} 7... exd5 {[%clk 0:02:49.7]} 8. Nf4 {[%clk
0:02:57.1]} 8... c6 {[%clk 0:02:41.9]} 9. Bd3 {[%clk 0:02:56.3]} 9... Bd6 {[%clk
0:02:40]} 10. O-O {[%clk 0:02:56.7]} 10... Bxf4 {[%clk 0:02:37.7]} 11. exf4
{[%clk 0:02:56.3]} 11... Re8 {[%clk 0:02:37.9]} 12. h3 {[%clk 0:02:54.2]} 12...
Nbd7 {[%clk 0:02:35]} 13. f5 {[%clk 0:02:53.7]} 13... Nb6 {[%clk 0:02:34]} 14.
Bg5 {[%clk 0:02:52.9]} 14... Qd6 {[%clk 0:02:31.5]} 15. Qf3 {[%clk 0:02:49.4]}
15... Nc4 {[%clk 0:02:30.1]} 16. Rae1 {[%clk 0:02:41.3]} 16... Bd7 {[%clk
0:02:28.3]} 17. Bf4 {[%clk 0:02:36.6]} 17... Qf8 {[%clk 0:02:27.2]} 18. Bxc4
{[%clk 0:02:29.1]} 18... dxc4 {[%clk 0:02:26.5]} 19. Be5 {[%clk 0:02:29.3]}
19... Nd5 {[%clk 0:02:05.2]} 20. Nxd5 {[%clk 0:02:20.5]} 20... cxd5 {[%clk
0:02:04.8]} 21. f6 {[%clk 0:02:19.9]} 21... Be6 {[%clk 0:01:51]} 22. Qf4 {[%clk
0:02:14]} 22... gxf6 {[%clk 0:01:30.2]} 23. Bxf6 {[%clk 0:02:12.3]} 23... h6
{[%clk 0:01:30.1]} 24. Re5 {[%clk 0:02:08.5]} 24... Kh7 {[%clk 0:01:29.3]} 25.
Rh5 {[%clk 0:02:04.3]} 25... Bd7 {[%clk 0:01:21.1]} 26. Bg5 {[%clk 0:02:02.9]}
26... Re4 {[%clk 0:01:19.9]} 27. Qf6 {[%clk 0:01:36.2]} 27... Qg7 {[%clk
0:01:19.3]} 28. Rxh6+ {[%clk 0:01:27.3]} 28... Kg8 {[%clk 0:01:18.6]} 29. Rh5
{[%clk 0:01:05.4]} 29... Rae8 {[%clk 0:00:48.5]} 30. Qd6 {[%clk 0:01:00.9]}
30... Be6 {[%clk 0:00:36.5]} 31. Bh6 {[%clk 0:00:56]} 31... Qf6 {[%clk
0:00:29.1]} 32. Qg3+ {[%clk 0:00:54.4]} 32... Bg4 {[%clk 0:00:14]} 33. hxg4
{[%clk 0:00:53.5]} 33... Re1 {[%clk 0:00:12.5]} 34. Be3 {[%clk 0:00:48.6]} 34...
Rxf1+ {[%clk 0:00:10.5]} 35. Kxf1 {[%clk 0:00:48.3]} 35... Kf8 {[%clk
0:00:06.8]} 36. Qf4 {[%clk 0:00:45.7]} 1-0

[Event "Early-Titled-Tuesday-Blitz-March-05-2024"]
[Site "Chess.com"]
[Date "2024.03.05"]
[Round "4"]
[White "RogelioOscarSanchezB"]
[Black "RianKapriaga"]
[Result "0-1"]
[WhiteElo "2018"]
[BlackElo "2300"]
[TimeControl "180+1"]
[EndTime "8:41:30 PST"]
[Termination "RianKapriaga won by resignation"]

1. d4 {[%clk 0:02:56.9]} 1... Nf6 {[%clk 0:02:58.9]} 2. Nc3 {[%clk 0:02:57]}
2... d5 {[%clk 0:02:58.1]} 3. Bf4 {[%clk 0:02:56.8]} 3... c6 {[%clk 0:02:57.9]}
4. e3 {[%clk 0:02:56.8]} 4... Bf5 {[%clk 0:02:57.5]} 5. Bd3 {[%clk 0:02:57]}
5... Bxd3 {[%clk 0:02:55.7]} 6. cxd3 {[%clk 0:02:57.9]} 6... e6 {[%clk
0:02:55.5]} 7. Nf3 {[%clk 0:02:57]} 7... Bd6 {[%clk 0:02:54.3]} 8. Ne5 {[%clk
0:02:56.5]} 8... Qc7 {[%clk 0:02:51.9]} 9. Rc1 {[%clk 0:02:54.3]} 9... a6 {[%clk
0:02:49.2]} 10. O-O {[%clk 0:02:50.9]} 10... Nbd7 {[%clk 0:02:48.7]} 11. Nxd7
{[%clk 0:02:49.7]} 11... Qxd7 {[%clk 0:02:46.2]} 12. Bxd6 {[%clk 0:02:46.9]}
12... Qxd6 {[%clk 0:02:47.1]} 13. e4 {[%clk 0:02:47.1]} 13... Nd7 {[%clk
0:02:25.9]} 14. Qg4 {[%clk 0:02:43.5]} 14... O-O {[%clk 0:02:21.7]} 15. e5
{[%clk 0:02:26]} 15... Qb4 {[%clk 0:02:18]} 16. Rc2 {[%clk 0:02:17.5]} 16...
Nxe5 {[%clk 0:02:15.5]} 17. Qg3 {[%clk 0:01:30.2]} 17... Ng6 {[%clk 0:02:04.4]}
18. Ne2 {[%clk 0:01:29]} 18... Rac8 {[%clk 0:02:01.4]} 19. a3 {[%clk 0:01:26.8]}
19... Qe7 {[%clk 0:01:50.8]} 20. Rfc1 {[%clk 0:01:23.2]} 20... e5 {[%clk
0:01:43.9]} 21. dxe5 {[%clk 0:01:20.1]} 21... Qxe5 {[%clk 0:01:44.8]} 22. Qxe5
{[%clk 0:01:12.3]} 22... Nxe5 {[%clk 0:01:45.7]} 23. Nf4 {[%clk 0:01:12.3]}
23... Rce8 {[%clk 0:01:36.4]} 24. h4 {[%clk 0:01:03.2]} 24... Re7 {[%clk
0:01:31.1]} 25. Re2 {[%clk 0:00:59.5]} 25... Rfe8 {[%clk 0:01:23.3]} 26. Rce1
{[%clk 0:00:56.3]} 26... Ng6 {[%clk 0:01:13.4]} 27. Rxe7 {[%clk 0:00:51.8]}
27... Rxe7 {[%clk 0:01:12.2]} 28. Rxe7 {[%clk 0:00:44.7]} 28... Nxe7 {[%clk
0:01:13.1]} 29. Kf1 {[%clk 0:00:40.3]} 29... h6 {[%clk 0:01:10]} 30. Ke2 {[%clk
0:00:39]} 30... g5 {[%clk 0:01:07.7]} 31. Nh5 {[%clk 0:00:33.3]} 31... Nf5
{[%clk 0:00:58]} 32. hxg5 {[%clk 0:00:31.7]} 32... hxg5 {[%clk 0:00:58]} 33.
Nf6+ {[%clk 0:00:29.2]} 33... Kf8 {[%clk 0:00:58.6]} 34. Nd7+ {[%clk 0:00:25.4]}
34... Ke7 {[%clk 0:00:57.6]} 35. Nc5 {[%clk 0:00:25.3]} 35... Nd6 {[%clk
0:00:58]} 36. f3 {[%clk 0:00:18.1]} 36... a5 {[%clk 0:00:57.4]} 37. d4 {[%clk
0:00:16.7]} 37... b6 {[%clk 0:00:56.8]} 38. Nd3 {[%clk 0:00:12.5]} 38... f6
{[%clk 0:00:53.6]} 39. b3 {[%clk 0:00:11]} 39... Nf5 {[%clk 0:00:53.1]} 0-1

[Event "Early-Titled-Tuesday-Blitz-March-05-2024"]
[Site "Chess.com"]
[Date "2024.03.05"]
[Round "4"]
[White "Bernt42"]
[Black "deepfear"]
[Result "1-0"]
[WhiteElo "2266"]
[BlackElo "1964"]
[TimeControl "180+1"]
[EndTime "8:41:30 PST"]
[Termination "Bernt42 won on time"]

1. e4 {[%clk 0:02:59.8]} 1... c5 {[%clk 0:02:57.3]} 2. c3 {[%clk 0:02:59.9]}
2... d5 {[%clk 0:02:52.9]} 3. exd5 {[%clk 0:03:00.1]} 3... Qxd5 {[%clk
0:02:52.6]} 4. d4 {[%clk 0:02:59.9]} 4... cxd4 {[%clk 0:02:52.4]} 5. cxd4 {[%clk
0:03:00.2]} 5... Nc6 {[%clk 0:02:48.5]} 6. Nf3 {[%clk 0:02:58.2]} 6... Bg4
{[%clk 0:02:38.2]} 7. Be2 {[%clk 0:02:58]} 7... Nf6 {[%clk 0:02:37.9]} 8. Nc3
{[%clk 0:02:55.9]} 8... Qd8 {[%clk 0:02:38.3]} 9. d5 {[%clk 0:02:51.4]} 9... Nb8
{[%clk 0:02:10.7]} 10. Qb3 {[%clk 0:02:30]} 10... Qb6 {[%clk 0:01:50.5]} 11. Nb5
{[%clk 0:01:50.1]} 11... e6 {[%clk 0:01:29.7]} 12. Be3 {[%clk 0:01:30.4]} 12...
Qa5+ {[%clk 0:01:07.6]} 13. Bd2 {[%clk 0:01:25.4]} 13... Qd8 {[%clk 0:01:01.4]}
14. Qa4 {[%clk 0:01:02]} 14... Nbd7 {[%clk 0:00:36.4]} 15. Rc1 {[%clk
0:00:42.6]} 15... Nxd5 {[%clk 0:00:25.1]} 16. Qxg4 {[%clk 0:00:40.5]} 16... a6
{[%clk 0:00:14.5]} 17. Nc3 {[%clk 0:00:39]} 17... N7f6 {[%clk 0:00:11]} 18. Qa4+
{[%clk 0:00:38.7]} 18... Qd7 {[%clk 0:00:09.7]} 19. Qxd7+ {[%clk 0:00:38.6]}
19... Kxd7 {[%clk 0:00:10.6]} 20. Nxd5 {[%clk 0:00:38.2]} 20... Nxd5 {[%clk
0:00:10.8]} 21. O-O {[%clk 0:00:38.3]} 21... Bd6 {[%clk 0:00:09.1]} 22. Bc4
{[%clk 0:00:36.9]} 22... Nb6 {[%clk 0:00:08.1]} 23. Bb3 {[%clk 0:00:36.1]} 23...
a5 {[%clk 0:00:07]} 24. Be3 {[%clk 0:00:36.4]} 24... Nd5 {[%clk 0:00:05.8]} 25.
Bxd5 {[%clk 0:00:36.4]} 25... exd5 {[%clk 0:00:06.7]} 26. Rfd1 {[%clk
0:00:36.8]} 26... Ke6 {[%clk 0:00:04.2]} 27. Nd4+ {[%clk 0:00:37]} 27... Kf6
{[%clk 0:00:03.7]} 28. Nb5 {[%clk 0:00:36.4]} 28... Be5 {[%clk 0:00:02.7]} 29.
b3 {[%clk 0:00:33]} 29... Rac8 {[%clk 0:00:01.9]} 30. Bd4 {[%clk 0:00:33.1]} 1-0

[Event "Early-Titled-Tuesday-Blitz-March-05-2024"]
[Site "Chess.com"]
[Date "2024.03.05"]
[Round "4"]
[White "wannabe2700"]
[Black "amanjazu"]
[Result "1-0"]
[WhiteElo "2762"]
[BlackElo "2541"]
[TimeControl "180+1"]
[EndTime "8:41:33 PST"]
[Termination "wannabe2700 won by resignation"]

1. b3 {[%clk 0:03:00.9]} 1... Nc6 {[%clk 0:02:58.4]} 2. Bb2 {[%clk 0:03:01.8]}
2... e5 {[%clk 0:02:59.3]} 3. e3 {[%clk 0:03:01.4]} 3... g6 {[%clk 0:02:59.3]}
4. Nf3 {[%clk 0:02:54]} 4... Bg7 {[%clk 0:02:59.4]} 5. c4 {[%clk 0:02:54]} 5...
d6 {[%clk 0:02:58.3]} 6. d4 {[%clk 0:02:53.3]} 6... Nge7 {[%clk 0:02:58]} 7.
dxe5 {[%clk 0:02:52.6]} 7... Nxe5 {[%clk 0:02:54.4]} 8. Nxe5 {[%clk 0:02:52.2]}
8... Bxe5 {[%clk 0:02:54.8]} 9. Bxe5 {[%clk 0:02:52.3]} 9... dxe5 {[%clk
0:02:55.7]} 10. Qxd8+ {[%clk 0:02:52.8]} 10... Kxd8 {[%clk 0:02:56.6]} 11. Nc3
{[%clk 0:02:48]} 11... c6 {[%clk 0:02:56.9]} 12. O-O-O+ {[%clk 0:02:47.7]} 12...
Kc7 {[%clk 0:02:57]} 13. h4 {[%clk 0:02:16.9]} 13... h6 {[%clk 0:02:15.7]} 14.
c5 {[%clk 0:01:26.6]} 14... b6 {[%clk 0:02:11.7]} 15. Ne4 {[%clk 0:01:25.1]}
15... f5 {[%clk 0:02:10.4]} 16. Nd6 {[%clk 0:01:22.2]} 16... Be6 {[%clk
0:02:10.3]} 17. Bc4 {[%clk 0:01:20.9]} 17... Bd5 {[%clk 0:02:01.7]} 18. e4
{[%clk 0:01:20.1]} 18... bxc5 {[%clk 0:01:56.3]} 19. Nxf5 {[%clk 0:00:56.9]}
19... Bxc4 {[%clk 0:01:42.4]} 20. Nxe7 {[%clk 0:00:56.5]} 20... Bf7 {[%clk
0:01:42.4]} 21. h5 {[%clk 0:00:55.2]} 21... Rae8 {[%clk 0:01:21.9]} 22. Nxg6
{[%clk 0:00:51.5]} 22... Rhg8 {[%clk 0:01:21.8]} 23. Nh4 {[%clk 0:00:48.6]}
23... Bxh5 {[%clk 0:01:18.6]} 24. f3 {[%clk 0:00:49.1]} 24... Rd8 {[%clk
0:01:06.2]} 25. Nf5 {[%clk 0:00:41.1]} 25... Rxd1+ {[%clk 0:01:04.5]} 26. Kxd1
{[%clk 0:00:42]} 26... Be8 {[%clk 0:00:56.9]} 27. g4 {[%clk 0:00:39.9]} 27...
Rf8 {[%clk 0:00:48]} 28. Rxh6 {[%clk 0:00:39]} 28... Bd7 {[%clk 0:00:48.2]} 29.
Rh7 {[%clk 0:00:37.7]} 29... Kd8 {[%clk 0:00:44.9]} 30. Ke2 {[%clk 0:00:37]}
30... Be6 {[%clk 0:00:37.5]} 31. Rxa7 {[%clk 0:00:35.3]} 31... Rg8 {[%clk
0:00:31.6]} 32. Kd3 {[%clk 0:00:32.7]} 32... Bxf5 {[%clk 0:00:25.7]} 33. exf5
{[%clk 0:00:32.2]} 33... e4+ {[%clk 0:00:20.7]} 34. Ke3 {[%clk 0:00:29.4]} 34...
Re8 {[%clk 0:00:18.6]} 35. Ra8+ {[%clk 0:00:29.3]} 1-0